bitfinex/quotes_SOLUSD_20241210
["timestamp","ask_amount","ask_price","bid_price","bid_amount"]
[1733836452513,0.12549,214.05,213.89,23.03961689]
[1733836452712,0.71461197,214.04,213.87,23.74061965]
[1733836453021,20.71461197,214.04,213.87,23.74061965]
[1733836453229,20.71461197,214.04,213.9,23.03961689]
[1733836453434,0.71461197,214.04,213.91,0.70095114]
[1733836453609,20.71461197,214.07,213.91,0.70095114]
[1733836454138,2.81976021,214.04,213.92,23.776884]
[1733836454425,0.71461197,214.03,213.92,23.776884]
[1733836455008,0.71461197,214.03,213.89,23.03961689]
[1733836455208,20.0,213.99,213.88,0.70106972]
[1733836455398,0.71461197,213.98,213.86,0.5749028]
[1733836456609,24.67651197,213.98,213.86,0.5749028]
[1733836457205,4.67651197,213.98,213.86,0.5749028]
[1733836457406,4.67651197,213.98,213.87,23.03961689]
[1733836457609,4.67651197,213.98,213.88,0.7011165]
[1733836457610,3.9619,213.98,213.88,0.7011165]
[1733836457823,0.71461197,214.01,213.89,23.03961689]
[1733836458029,0.71461197,214.01,213.9,23.776884]
[1733836458325,8.3612,214.02,213.92,23.902374]
[1733836458528,0.71461197,214.01,213.91,23.03961689]
[1733836459034,0.71461197,214.01,213.89,46.81650089]
[1733836459400,10.12549,213.98,213.86,0.5749028]
[1733836459602,20.0,213.93,213.86,0.5749028]
[1733836459909,0.71461197,213.92,213.86,0.5749028]
[1733836460107,3.9619,213.91,213.86,0.5749028]
[1733836460331,0.71461197,213.9,213.86,0.5749028]
[1733836460506,0.71461197,213.9,213.86,2.8e-06]
[1733836460700,8.3612,213.88,213.74,0.70152708]
[1733836460906,20.0,213.85,213.7,1.70159475]
[1733836461245,0.71461197,213.84,213.7,1.70159475]
[1733836461735,0.71461197,213.84,213.7,1.0]
[1733836461736,30.12549,213.83,213.7,1.0]
[1733836461924,23.9619,213.8,213.7,1.0]
[1733836462235,0.71461197,213.79,213.7,1.0]
[1733836462735,20.0,213.75,213.7,1.0]
[1733836462931,0.71461197,213.74,213.7,1.0]
[1733836463136,20.0,213.75,213.7,1.0]
[1733836463336,0.71461197,213.74,213.7,1.0]
[1733836463512,20.0,213.75,213.7,1.0]
[1733836464642,0.71461197,213.74,213.7,1.0]
[1733836465405,20.0,213.75,213.7,1.0]
[1733836465612,8.3612,213.78,213.71,0.70182693]
[1733836465921,0.71461197,213.77,213.7,1.0]
[1733836466117,8.3612,213.78,213.7,1.0]
[1733836466511,8.3612,213.85,213.71,0.70171318]
[1733836466721,0.71461197,213.84,213.71,0.70171318]
[1733836467447,0.71461197,213.84,213.7,1.0]
[1733836467615,0.12549,213.83,213.7,1.0]
[1733836467816,0.71461197,213.82,213.7,1.0]
[1733836468035,20.0,213.78,213.7,1.0]
[1733836468220,0.71461197,213.77,213.7,1.0]
[1733836468527,20.0,213.73,213.7,1.0]
[1733836468743,0.71461197,213.72,213.7,1.0]
[1733836469130,0.71461197,213.72,213.65,0.57497089]
[1733836470137,0.71461197,213.72,213.33,23.24]
[1733836470138,20.0,213.71,213.42,18.742468]
[1733836470344,0.85287572,213.7,213.59,37.59905701]
[1733836470854,20.0,213.69,213.57,37.59905701]
[1733836471152,7.24872432,213.71,213.61,37.59905701]
[1733836471449,8.74706657,213.72,213.63,37.59905701]
[1733836471825,7.24872432,213.75,213.64,0.31369597]
[1733836472148,24.35455181,213.74,213.65,37.59905701]
[1733836472351,43.32562564,213.69,213.65,37.59905701]
[1733836472528,9.44999226,213.68,213.63,37.59905701]
[1733836472845,9.44999226,213.67,213.63,37.59905701]
[1733836473043,9.44999226,213.66,213.65,37.59905701]
[1733836473244,7.14254734,213.7,213.65,37.59905701]
[1733836473447,7.14254734,213.71,213.65,37.59905701]
[1733836473644,7.14254734,213.71,213.67,37.59905701]
[1733836473954,7.14411733,213.72,213.67,37.59905701]
[1733836474323,7.14411733,213.72,213.68,37.59905701]
[1733836474730,7.14411733,213.73,213.68,37.59905701]
[1733836475334,7.14411733,213.73,213.65,37.59905701]
[1733836475532,7.14411733,213.72,213.66,37.59905701]
[1733836475838,7.14411733,213.71,213.64,37.59905701]
[1733836476749,19.73207846,213.73,213.64,37.59905701]
[1733836476750,7.14411733,213.7,213.64,37.59905701]
[1733836476929,7.14411733,213.7,213.6,11.7039]
[1733836476930,7.14411733,213.7,213.66,37.59905701]
[1733836477129,14.28509469,213.73,213.6,11.7039]
[1733836477130,7.14411733,213.71,213.65,37.59905701]
[1733836477345,7.14411733,213.71,213.66,37.59905701]
[1733836477545,7.14411733,213.71,213.7,37.59905701]
[1733836477728,7.14411733,213.74,213.68,37.59905701]
[1733836478027,7.14411733,213.74,213.67,37.59905701]
[1733836478235,10.18675637,213.78,213.67,37.59905701]
[1733836478568,7.8943,213.78,213.67,37.59905701]
[1733836478722,2.29245637,213.77,213.67,37.59905701]
[1733836478928,7.8943,213.78,213.7,37.59905701]
[1733836479123,2.29245637,213.79,213.7,37.59905701]
[1733836479544,2.29245637,213.79,213.65,20.0]
[1733836479545,7.14411733,213.82,213.76,37.59905701]
[1733836479731,30.45057015,213.86,213.67,7.9207]
[1733836479732,7.14411733,213.86,213.8,37.59905701]
[1733836479935,17.3308737,213.88,213.81,37.59905701]
[1733836480132,10.18675637,213.88,213.8,37.59905701]
[1733836480359,10.18675637,213.88,213.69,10.0]
[1733836480360,2.29245637,213.84,213.76,37.59905701]
[1733836480535,2.29245637,213.82,213.75,37.59905701]
[1733836480865,2.29245637,213.8,213.75,37.59905701]
[1733836481033,2.29245637,213.82,213.75,37.59905701]
[1733836481353,2.29245637,213.8,213.75,37.59905701]
[1733836482464,2.29245637,213.82,213.75,37.59905701]
[1733836482759,23.776884,213.83,213.75,37.59905701]
[1733836482961,2.29245637,213.83,213.8,37.59905701]
[1733836483145,2.29245637,213.83,213.79,37.59905701]
[1733836483346,3.16925463,213.87,213.79,37.59905701]
[1733836483662,10.18675637,213.88,213.82,37.59905701]
[1733836483850,2.29245637,213.91,213.83,37.59905701]
[1733836484034,2.29245637,213.87,213.81,37.59905701]
[1733836484663,3.16910233,213.91,213.82,37.59905701]
[1733836484961,2.29245637,213.87,213.81,37.59905701]
[1733836485165,22.29245637,213.9,213.81,23.10795836]
[1733836485365,2.29245637,213.87,213.79,23.10795836]
[1733836485873,2.29245637,213.89,213.81,23.10795836]
[1733836486050,20.0,213.9,213.82,23.10795836]
[1733836486230,20.0,214.13,213.84,20.0]
[1733836486435,6.51113004,214.05,213.94,37.89743039]
[1733836486845,2.85633419,213.96,213.94,37.89743039]
[1733836487445,2.85633419,213.96,213.9,58.01950404]
[1733836487642,0.87669444,213.95,213.9,58.01950404]
[1733836488032,0.87669444,213.95,213.86,72.52430122]
[1733836488236,0.12549,213.93,213.8,96.72128378]
[1733836488565,1.0023322,213.93,213.78,10.0]
[1733836489141,1.0023322,213.93,213.82,10.0]
[1733836489359,0.87670512,213.95,213.84,20.0]
[1733836489741,0.12549,213.94,213.84,10.0]
[1733836489963,0.12549,213.92,213.82,20.0]
[1733836490164,0.87671598,213.91,213.82,20.0]
[1733836490364,4.55243419,213.96,213.82,20.0]
[1733836490365,0.12549,213.94,213.82,10.0]
[1733836490548,23.902374,213.92,213.8,10.0]
[1733836490752,0.12549,213.88,213.79,10.0]
[1733836491062,0.42553191,213.87,213.79,10.0]
[1733836491258,1.00237118,213.86,213.78,10.0]
[1733836491766,0.42553191,213.85,213.78,10.0]
[1733836491966,1.00245527,213.84,213.75,10.0]
[1733836492272,0.42553191,213.83,213.73,20.0]
[1733836492456,0.87709247,213.82,213.75,20.0]
[1733836492646,0.87709247,213.82,213.73,20.0]
[1733836492967,1.873276,213.86,213.75,20.0]
[1733836492968,0.42553191,213.81,213.75,20.0]
[1733836493572,0.42553191,213.81,213.75,10.0]
[1733836493938,0.42553191,213.81,213.73,10.0]
[1733836494144,1.30259301,213.81,213.72,10.0]
[1733836494366,1.30259301,213.81,213.74,7.18252474]
[1733836494666,1.30259301,213.81,213.73,7.18252474]
[1733836494872,1.30259301,213.81,213.73,17.18252474]
[1733836495041,0.87713125,213.8,213.73,17.18252474]
[1733836495243,0.87713125,213.8,213.72,10.0]
[1733836495577,0.42553191,213.79,213.69,43.10795836]
[1733836495756,0.42553191,213.79,213.67,12.10712474]
[1733836495757,0.12549,213.78,213.67,20.0]
[1733836496074,0.42553191,213.77,213.69,10.0]
[1733836496244,0.87730104,213.76,213.67,10.0]
[1733836496445,0.87730104,213.76,213.65,10.0]
[1733836496642,0.42553191,213.75,213.65,10.0]
[1733836496846,0.87742619,213.74,213.65,10.0]
[1733836497063,0.87742619,213.74,213.67,20.0]
[1733836497373,0.42553191,213.73,213.67,20.0]
[1733836497556,0.42553191,213.73,213.67,10.0]
[1733836498571,0.42553191,213.73,213.66,10.0]
[1733836499990,0.42553191,213.73,213.67,10.0]
[1733836500277,0.42553191,213.73,213.72,10.0]
[1733836500486,0.42553191,213.73,213.72,33.10795836]
[1733836501149,0.01206959,213.73,213.72,33.10795836]
[1733836501376,0.87701364,213.85,213.73,10.0]
[1733836501681,0.12549,213.84,213.74,10.0]
[1733836501987,0.12549,213.82,213.74,10.0]
[1733836502176,0.12549,213.82,213.72,10.0]
[1733836502396,23.902374,213.82,213.72,10.0]
[1733836502555,20.0,213.79,213.73,10.0]
[1733836502877,20.0,213.79,213.73,20.0]
[1733836503256,0.8771178,213.78,213.71,20.0]
[1733836503449,20.0,213.81,213.73,10.0]
[1733836503755,80.8,214.0,213.77,10.0]
[1733836503963,0.87692788,213.86,213.77,10.0]
[1733836504162,0.12549,213.85,213.77,10.0]
[1733836504389,0.87693394,213.84,213.77,10.0]
[1733836504569,0.87693064,213.87,213.77,10.0]
[1733836504769,0.12549,213.84,213.73,10.0]
[1733836504966,1.00262298,213.84,213.73,10.0]
[1733836505193,0.87713298,213.84,213.73,10.0]
[1733836505362,0.87713298,213.84,213.77,10.0]
[1733836505757,1.6721,213.9,213.81,10.0]
[1733836506063,3.788,213.93,213.81,10.0]
[1733836506276,0.87668171,213.92,213.84,10.0]
[1733836506780,0.87659466,213.91,213.82,10.0]
[1733836507005,0.87659466,213.91,213.81,10.0]
[1733836507281,0.12549,213.9,213.8,10.0]
[1733836507468,0.12549,213.9,213.79,10.0]
[1733836508080,20.0,213.87,213.8,10.0]
[1733836508301,20.0,213.87,213.82,10.0]
[1733836508677,1.00226484,213.9,213.82,10.0]
[1733836509387,1.00226484,213.9,213.8,10.0]
[1733836509799,20.0,213.91,213.84,10.0]
[1733836509976,20.0,213.91,213.81,10.0]
[1733836509977,0.87662843,213.9,213.81,10.0]
[1733836510175,0.87662843,213.9,213.82,10.0]
[1733836511218,0.12549,213.9,213.82,10.0]
[1733836511601,1.87257,213.95,213.88,10.0]
[1733836511807,0.87645777,213.97,213.88,10.0]
[1733836512108,1.84731698,213.98,213.9,20.0]
[1733836512410,0.87645321,214.02,213.9,20.0]
[1733836512704,0.87645321,214.02,213.82,20.0]
[1733836512705,0.12549,213.99,213.82,20.0]
[1733836512909,1.00225927,213.99,213.78,10.0]
[1733836513212,0.12549,213.94,213.76,10.0]
[1733836513510,20.0,213.88,213.78,10.0]
[1733836513702,0.87688226,213.87,213.78,10.0]
[1733836514080,0.87688226,213.87,213.81,10.0]
[1733836514282,0.87684064,213.9,213.81,10.0]
[1733836514483,0.12549,213.89,213.78,10.0]
[1733836514804,0.12549,213.87,213.78,10.0]
[1733836514993,0.12549,213.87,213.79,10.0]
[1733836515309,20.87684893,213.87,213.75,10.0]
[1733836515486,20.0,213.83,213.76,10.0]
[1733836515691,20.0,213.83,213.77,10.0]
[1733836516315,23.902374,213.9,213.79,10.0]
[1733836516624,0.12549,213.86,213.78,10.0]
[1733836516802,0.12549,213.82,213.73,10.0]
[1733836517011,1.00270267,213.82,213.71,10.0]
[1733836517912,0.87720603,213.81,213.73,20.0]
[1733836518111,0.87706434,213.84,213.78,20.0]
[1733836518311,0.12549,213.9,213.78,20.0]
[1733836518514,0.12549,213.88,213.78,20.0]
[1733836518693,0.87697236,213.89,213.78,20.0]
[1733836518899,0.87697236,213.89,213.8,10.0]
[1733836519424,0.87684501,213.91,213.81,10.0]
[1733836520019,0.12549,213.9,213.81,10.0]
[1733836520221,0.87684501,213.91,213.8,10.0]
[1733836520222,0.87676696,213.89,213.8,10.0]
[1733836520400,0.87686578,213.95,213.84,10.0]
[1733836520606,0.87686578,213.95,213.8,10.0]
[1733836520812,0.12549,213.94,213.8,20.0]
[1733836521111,0.12549,213.92,213.8,20.0]
[1733836521326,0.12549,213.9,213.8,20.0]
[1733836521495,0.12549,213.88,213.8,20.0]
[1733836521813,0.8768517,213.87,213.8,20.0]
[1733836522028,0.12549,213.88,213.8,20.0]
[1733836522218,20.0,213.87,213.8,10.0]
[1733836522518,0.12549,213.85,213.76,20.0]
[1733836522724,0.87692197,213.86,213.8,10.0]
[1733836522930,0.87681132,213.86,213.8,20.0]
[1733836523125,0.87685171,213.87,213.8,20.0]
[1733836523337,0.87680302,213.9,213.82,10.0]
[1733836523702,0.12549,213.89,213.8,20.0]
[1733836523903,0.87680786,213.88,213.8,20.0]
[1733836524133,0.12549,213.89,213.82,10.0]
[1733836524320,0.87677302,213.89,213.82,10.0]
[1733836524705,0.87677302,213.89,213.8,20.0]
[1733836524706,0.12549,213.88,213.8,20.0]
[1733836524909,0.12549,213.86,213.76,10.0]
[1733836525417,0.12549,213.9,213.76,10.0]
[1733836525723,0.12549,213.78,213.7,20.0]
[1733836526026,1.00279304,213.78,213.7,10.0]
[1733836526228,1.00279304,213.78,213.71,10.0]
[1733836526406,1.00279304,213.78,213.68,10.0]
[1733836526606,1.00279304,213.78,213.69,10.0]
[1733836527059,1.00279304,213.78,213.68,10.0]
[1733836527334,1.00279304,213.78,213.67,10.0]
[1733836527504,1.00279304,213.78,213.69,10.0]
[1733836527707,1.00279304,213.78,213.69,20.0]
[1733836528451,0.87724746,213.79,213.73,10.0]
[1733836528604,4.5693,213.83,213.74,10.0]
[1733836528801,0.87705757,213.82,213.74,10.0]
[1733836529009,0.12549,213.81,213.74,10.0]
[1733836529208,0.12549,213.79,213.72,10.0]
[1733836529642,0.87720071,213.82,213.74,10.0]
[1733836529938,20.0,213.8,213.74,10.0]
[1733836530634,20.0,213.8,213.63,8.5571]
[1733836530635,0.87711161,213.79,213.71,10.0]
[1733836530825,0.12549,213.78,213.71,10.0]
[1733836531031,0.87732338,213.77,213.71,10.0]
[1733836531507,0.87732338,213.77,213.7,10.0]
[1733836531824,0.87732338,213.77,213.71,10.0]
[1733836532014,0.87723777,213.78,213.71,10.0]
[1733836532216,0.87714384,213.79,213.74,10.0]
[1733836532419,0.87714384,213.79,213.68,23.10795836]
[1733836532420,0.12549,213.78,213.69,10.0]
[1733836532620,0.12549,213.78,213.7,10.0]
[1733836532838,0.12549,213.78,213.67,20.0]
[1733836533054,0.87738908,213.77,213.67,20.0]
[1733836533337,0.12549,213.76,213.67,20.0]
[1733836533542,23.902374,213.76,213.67,20.0]
[1733836533709,20.0,213.73,213.67,20.0]
[1733836533909,0.87741603,213.72,213.67,20.0]
[1733836534943,20.0,213.73,213.67,20.0]
[1733836535305,0.12549,213.71,213.63,20.0]
[1733836535512,0.12549,213.69,213.59,20.0]
[1733836535842,0.12549,213.69,213.59,10.0]
[1733836535843,0.12549,213.65,213.59,10.0]
[1733836536048,1.00326191,213.65,213.59,10.0]
[1733836536418,20.0,213.67,213.61,20.0]
[1733836536618,5.78691974,213.76,213.54,5.6072]
[1733836536619,20.0,213.71,213.65,10.0]
[1733836536831,0.87745966,213.7,213.65,10.0]
[1733836537117,20.0,213.71,213.67,20.0]
[1733836537327,20.0,213.75,213.67,20.0]
[1733836537521,0.87733932,213.74,213.67,20.0]
[1733836537747,0.87733932,213.74,213.68,10.0]
[1733836538446,0.87741266,213.77,213.7,10.0]
[1733836538745,0.12549,213.76,213.7,10.0]
[1733836539254,4.5693,213.78,213.63,10.0]
[1733836539255,0.87744971,213.75,213.63,10.0]
[1733836539449,0.12549,213.7,213.63,20.0]
[1733836539614,0.12549,213.7,213.65,10.0]
[1733836539615,1.00303533,213.7,213.65,10.0]
[1733836540425,1.00303533,213.7,213.63,20.0]
[1733836541011,23.776884,213.69,213.63,20.0]
[1733836541419,0.87754333,213.68,213.61,10.0]
[1733836541740,20.0,213.75,213.66,20.0]
[1733836541930,20.0,213.7,213.66,20.0]
[1733836542751,20.0,213.7,213.54,317.6072]
[1733836542752,0.87741977,213.69,213.64,20.0]
[1733836542953,0.87741977,213.69,213.54,317.6072]
[1733836542954,23.902374,213.68,213.61,10.0]
[1733836543163,23.902374,213.66,213.61,10.0]
[1733836543466,20.0,213.7,213.63,10.0]
[1733836543632,20.0,213.7,213.54,5.6072]
[1733836543633,20.0,213.7,213.65,20.0]
[1733836544650,0.87759064,213.72,213.67,20.0]
[1733836545732,0.87759064,213.72,213.67,10.0]
[1733836545933,0.87759064,213.72,213.65,20.0]
[1733836546137,0.12549,213.72,213.65,10.0]
[1733836546456,0.12549,213.68,213.59,10.0]
[1733836546744,0.12549,213.64,213.58,10.0]
[1733836547071,24.78019525,213.64,213.58,10.0]
[1733836548437,24.78019525,213.64,213.58,20.0]
[1733836548744,24.78019525,213.64,213.58,10.0]
[1733836549149,24.65470525,213.64,213.58,10.0]
[1733836549759,0.87782125,213.64,213.58,10.0]
[1733836549925,0.12549,213.67,213.59,10.0]
[1733836550131,18.6093,213.78,213.59,10.0]
[1733836550132,0.12549,213.65,213.59,10.0]
[1733836550365,18.6093,213.78,213.6,10.0]
[1733836550366,0.87778012,213.77,213.6,10.0]
[1733836550649,0.87778012,213.77,213.59,10.0]
[1733836550650,0.12549,213.76,213.59,10.0]
[1733836550824,20.0,213.71,213.59,10.0]
[1733836551018,0.12549,213.64,213.59,10.0]
[1733836551359,1.00323145,213.7,213.54,5.6072]
[1733836551360,0.43760151,213.63,213.62,10.0]
[1733836554061,0.43760151,213.63,213.6,20.0]
[1733836554273,0.43760151,213.63,213.62,10.0]
[1733836554571,0.43760151,213.63,213.6,10.0]
[1733836554783,0.43760151,213.63,213.61,10.0]
[1733836555247,0.43760151,213.63,213.58,20.0]
[1733836555579,0.43760151,213.63,213.53,20.0]
[1733836555580,20.0,213.59,213.53,20.0]
[1733836555792,1.00351629,213.58,213.53,10.0]
[1733836556099,1.4411178,213.58,213.49,11.0]
[1733836556251,1.4411178,213.58,213.49,1.0]
[1733836556575,1.4411178,213.58,213.46,10.0]
[1733836557110,1.4411178,213.58,213.45,10.0]
[1733836557245,1.4411178,213.58,213.44,0.5749028]
[1733836557665,0.12549,213.54,213.44,0.5749028]
[1733836557858,1.00397295,213.54,213.44,0.5749028]
[1733836558060,0.12549,213.52,213.44,0.5749028]
[1733836558277,1.00396195,213.52,213.44,0.5749028]
[1733836558477,0.12549,213.5,213.44,0.5749028]
[1733836558681,0.12549,213.5,213.44,2.8e-06]
[1733836558682,0.12549,213.46,213.44,2.8e-06]
[1733836558890,21.0040673,213.46,213.44,2.8e-06]
[1733836559185,0.56309151,213.45,213.44,2.8e-06]
[1733836559881,0.43760151,213.45,213.44,2.8e-06]
[1733836560182,0.43760151,213.45,213.44,10.0000028]
[1733836560981,0.43760151,213.45,213.44,2.8e-06]
[1733836561480,20.56309151,213.45,213.44,2.8e-06]
[1733836561651,44.33997551,213.45,213.44,2.8e-06]
[1733836561971,44.33997551,213.45,213.36,1.0]
[1733836561972,0.12549,213.44,213.36,1.0]
[1733836562154,1.00424658,213.44,213.36,1.0]
[1733836562487,0.12549,213.42,213.36,1.0]
[1733836562690,0.12549,213.4,213.36,1.0]
[1733836562860,1.00447597,213.4,213.3,11.0]
[1733836563192,0.12549,213.38,213.3,11.0]
[1733836563353,1.00452405,213.38,213.3,11.0]
[1733836563691,1.00452405,213.38,213.3,1.0]
[1733836563692,0.12549,213.36,213.3,1.0]
[1733836563891,1.00466083,213.36,213.3,1.0]
[1733836564173,20.0,213.41,213.3,1.0]
[1733836564174,0.43760151,213.35,213.3,1.0]
[1733836564391,0.43760151,213.35,213.3,11.0]
[1733836564554,1.6598,213.51,213.36,20.0]
[1733836564755,5.42557548,213.49,213.36,10.0]
[1733836564955,0.12549,213.48,213.36,10.0]
[1733836565260,0.87597548,213.47,213.34,10.0]
[1733836565655,0.12549,213.46,213.3,11.0]
[1733836565862,0.12549,213.44,213.3,11.0]
[1733836566175,0.12549,213.42,213.3,11.0]
[1733836566377,0.12549,213.4,213.3,1.0]
[1733836566684,23.902374,213.31,213.3,0.0001]
[1733836566885,24.77834948,213.31,213.3,0.0001]
[1733836567099,24.77834948,213.31,213.22,10.5749028]
[1733836567100,20.0,213.28,213.22,10.5749028]
[1733836567255,0.87597548,213.27,213.22,10.5749028]
[1733836567456,20.0,213.33,213.29,10.0]
[1733836568187,20.0,213.4,213.33,10.0]
[1733836568418,0.87597548,213.39,213.33,10.0]
[1733836568569,0.12549,213.38,213.33,10.0]
[1733836568894,0.87597548,213.37,213.28,10.0]
[1733836569077,0.12549,213.36,213.25,10.0]
[1733836569270,0.12549,213.34,213.25,10.0]
[1733836569468,0.12549,213.3,213.23,10.0]
[1733836569685,20.0,213.26,213.22,0.5749028]
[1733836569891,20.0,213.26,213.22,10.5749028]
[1733836570395,20.0,213.26,213.22,0.5749028]
[1733836570600,0.87597548,213.25,213.22,0.5749028]
[1733836570774,0.87597548,213.25,213.22,2.8e-06]
[1733836570775,0.12549,213.24,213.22,2.8e-06]
[1733836570972,0.12549,213.27,213.22,2.8e-06]
[1733836571300,0.12549,213.27,213.12,5.4396]
[1733836571301,3.4087029,213.27,213.12,10.0]
[1733836571595,23.776884,213.16,213.09,20.0]
[1733836571806,0.87597548,213.15,213.11,10.0]
[1733836571996,20.0,213.21,213.13,10.0]
[1733836572178,0.87597548,213.2,213.14,10.0]
[1733836572377,0.87597548,213.23,213.19,10.0]
[1733836572583,23.58520883,213.51,213.21,10.0]
[1733836572584,0.87597548,213.3,213.21,10.0]
[1733836572989,0.87597548,213.3,213.24,10.0]
[1733836573478,0.87597548,213.35,213.27,20.0]
[1733836573667,0.87597548,213.35,213.23,23.10795836]
[1733836573668,0.12549,213.33,213.23,10.0]
[1733836573873,1.00146548,213.33,213.23,10.0]
[1733836574300,1.00146548,213.33,213.24,10.0]
[1733836574498,0.87597548,213.33,213.27,10.0]
[1733836574689,0.87597548,213.33,213.26,10.0]
[1733836575079,0.12549,213.32,213.23,10.0]
[1733836575384,0.12549,213.3,213.23,10.0]
[1733836575575,0.12549,213.3,213.21,10.0]
[1733836575778,20.0,213.25,213.21,10.0]
[1733836575981,0.87597548,213.24,213.17,5.58]
[1733836576180,0.12549,213.23,213.14,10.0]
[1733836576405,0.12549,213.21,213.11,15.58]
[1733836576592,0.87597548,213.2,213.11,15.58]
[1733836576793,23.776884,213.19,213.11,15.58]
[1733836577112,0.87597548,213.18,213.11,15.58]
[1733836577409,0.87597548,213.24,213.19,10.0]
[1733836577587,0.87597548,213.24,213.2,10.0]
[1733836578300,0.87597548,213.29,213.23,10.0]
[1733836578698,0.87597548,213.32,213.23,10.0]
[1733836578903,0.12549,213.31,213.23,20.0]
[1733836579108,0.87597548,213.32,213.23,20.0]
[1733836579413,0.87597548,213.32,213.25,20.0]
[1733836579641,0.87597548,213.33,213.25,20.0]
[1733836580418,2.86560134,213.34,213.29,10.0]
[1733836580585,2.86560134,213.34,213.3,10.0]
[1733836580786,0.87597548,213.44,213.32,10.0]
[1733836581095,2.85970072,213.39,213.33,10.0]
[1733836581299,2.85970072,213.39,213.33,20.0]
[1733836581623,2.84393238,213.43,213.34,20.0]
[1733836581781,0.12549,213.41,213.34,10.0]
[1733836581983,0.87597548,213.42,213.34,10.0]
[1733836582184,0.87597548,213.42,213.33,10.0]
[1733836582401,0.12549,213.41,213.26,10.0]
[1733836582602,0.12549,213.39,213.27,10.0]
[1733836582812,0.87597548,213.38,213.29,10.0]
[1733836583110,0.87597548,213.38,213.31,10.0]
[1733836583307,0.87597548,213.42,213.35,10.0]
[1733836583511,0.87597548,213.42,213.34,10.0]
[1733836583720,0.12549,213.41,213.31,20.0]
[1733836583920,2.84393238,213.43,213.26,0.70312709]
[1733836583921,0.12549,213.39,213.29,10.0]
[1733836584104,2.84393238,213.43,213.29,20.0]
[1733836584105,0.12549,213.37,213.29,20.0]
[1733836584306,0.12549,213.37,213.27,10.0]
[1733836584623,20.0,213.33,213.29,10.0]
[1733836584916,20.0,213.33,213.31,10.0]
[1733836585118,2.84393238,213.43,213.34,10.0]
[1733836585290,0.87597548,213.42,213.34,10.0]
[1733836586019,0.12549,213.41,213.34,10.0]
[1733836586411,23.776884,213.37,213.34,10.0]
[1733836586723,0.12549,213.32,213.23,10.0]
[1733836587013,0.12549,213.28,213.19,20.0]
[1733836587219,1.00146548,213.28,213.17,5.58]
[1733836587520,0.12549,213.26,213.17,5.58]
[1733836587688,0.12549,213.24,213.17,10.0]
[1733836587894,1.00146548,213.24,213.11,20.0]
[1733836588115,1.00146548,213.24,213.15,20.0]
[1733836588293,1.00146548,213.24,213.15,10.0]
[1733836588489,0.87597548,213.24,213.18,20.0]
[1733836588698,2.784208,213.32,213.23,20.0]
[1733836588898,0.87597548,213.31,213.23,20.0]
[1733836589111,0.12549,213.3,213.23,20.0]
[1733836589421,2.784208,213.32,213.27,10.0]
[1733836589600,0.87597548,213.31,213.27,10.0]
[1733836589789,0.87597548,213.31,213.28,10.0]
[1733836589992,2.784208,213.32,213.25,10.0]
[1733836590603,23.902374,213.31,213.23,20.0]
[1733836590793,23.902374,213.31,213.21,9.4627]
[1733836590794,23.776884,213.29,213.26,20.0]
[1733836591010,0.87597548,213.28,213.24,20.0]
[1733836591208,23.902374,213.31,213.24,20.0]
[1733836591408,20.0,213.28,213.27,10.0]
[1733836591602,20.0,213.28,213.27,20.0]
[1733836591799,2.784208,213.32,213.29,10.0]
[1733836592233,0.87597548,213.4,213.32,10.0]
[1733836592432,0.12549,213.39,213.28,20.0]